[Event "55th Biel Festival MTO 2022"]
[Site "Biel"]
[Date "2022.07.21"]
[Round "8.13"]
[White "Petrov, Martin"]
[Black "Pavlovic, Milos"]
[Result "0-1"]
[ECO "C10"]
[WhiteElo "2534"]
[BlackElo "2461"]
[Annotator "RC"]
[PlyCount "158"]
[EventDate "2022.07.13"]
[EventType "swiss"]
[EventCountry "SUI"]
[SourceTitle "playchess.com"]
[Source "ChessBase"]
[SourceQuality "1"]
[TimeControl "40/5400+30:1800+30"]

1. e4 {[%emt 0:00:12]} e6 {[%emt 0:00:16]} 2. d4 {[%emt 0:00:11]} d5 {[%emt 0:00:07]} 3. Nc3 {[%emt 0:00:09]} dxe4 {[%emt 0:02:43]} 4. Nxe4 {[%emt 0:00:15]} Be7 {[%emt 0:00:05]} 5. Nf3 {[%emt 0:00:42]} Nf6 {[%emt 0:00:11]} 6. Bd3 {[%emt 0:00:07]} Nbd7 {[%emt 0:00:05]} 7. Qe2 {[%emt 0:00:23]} Nxe4 {[%emt 0:01:52]} 8. Bxe4 {[%emt 0:00:25]} c5 {[%emt 0:00:04]} 9. Be3 {[%emt 0:21:42]} cxd4 {[%emt 0:43:20]} 10. Bxd4 {[%emt 0:01:10]} Qa5+ {[%emt 0:00:05]} 11. c3 {[%emt 0:21:00]} Bf6 {[%emt 0:04:04]} 12. O-O-O {[%emt 0:04:16]} O-O {[%emt 0:02:25]} 13. Kb1 {[%emt 0:05:01]} Bxd4 {[%emt 0:00:37]} 14. Rxd4 {[%emt 0:00:49]} Nf6 {[%emt 0:00:05]} 15. Bc2 {[%emt 0:04:46]} Bd7 {[%emt 0:04:57]} 16. Qe5 {[%emt 0:04:11]} Qxe5 {[%emt 0:01:29]} 17. Nxe5 {[%emt 0:00:03]} Bc6 {[%emt 0:00:04]} 18. Nxc6 {[%emt 0:01:48]} bxc6 {[%emt 0:00:35]} 19. Rhd1 {[%emt 0:00:54]} Rfc8 {[%emt 0:00:31]} 20. Rc4 {[%emt 0:05:23]} Nd5 {[%emt 0:03:21]} 21. Rc5 {[%emt 0:03:51]} Rab8 {[%emt 0:12:53]} 22. Bb3 {[%emt 0:05:30]} Kf8 {[%emt 0:01:11]} 23. c4 {[%emt 0:02:31]} Nf6 {[%emt 0:00:04]} 24. f3 {[%emt 0:00:05]} Ke7 {[%emt 0:00:06]} 25. Ba4 {[%emt 0:01:04]} Rb6 {[%emt 0:20:35]} 26. Ra5 {[%emt 0:01:33]} Rc7 {[%emt 0:00:04]} 27. c5 {[%emt 0:02:04]} Rb8 {[%emt 0:00:28]} 28. Rd6 {[%emt 0:07:11]} Rbc8 {[%emt 0:00:04]} 29. Bb3 {[%emt 0:06:26]} Rb8 {[%emt 0:01:42]} 30. Ra6 {[%emt 0:00:33]} Rbc8 {[%emt 0:00:25]} 31. Ra5 {[%emt 0:00:18]} Rb8 {[%emt 0:00:06]} 32. Ra6 {[%emt 0:00:15]} Rbc8 {[%emt 0:00:15]} 33. Rd4 {[%emt 0:00:09]} Nd7 {[%emt 0:00:09]} 34. Ra5 {[%emt 0:00:07]} Rb8 {[%emt 0:00:54]} 35. Rda4 {[%emt 0:00:21]} Rb5 {[%emt 0:00:41]} 36. Rxa7 {[%emt 0:01:14]} Rxa7 {[%emt 0:00:05]} 37. Rxa7 {[%emt 0:00:03]} Rxc5 {[%emt 0:00:02]} 38. a4 {[%emt 0:01:12]} Kd6 {[%emt 0:02:01]} 39. a5 {[%emt 0:00:30]} Rb5 {[%emt 0:00:14]} 40. Bc4 {[%emt 0:01:14]} Rb8 {[%emt 0:00:49]} 41. Kc2 {[%emt 0:06:18]} g5 {[%emt 0:13:02]} 42. Kc3 {[%emt 0:01:47]} h5 {[%emt 0:12:48]} 43. g3 {[%emt 0:10:48]} g4 {[%emt 0:02:18]} 44. f4 {[%emt 0:00:58]} f5 {[%emt 0:01:10]} 45. b4 {[%emt 0:06:10]} Nf6 {[%emt 0:00:34]} 46. b5 {[%emt 0:04:23]} cxb5 {[%emt 0:00:34]} 47. Ra6+ {[%emt 0:00:02]} Kc5 {[%emt 0:00:06]} 48. Bxe6 {[%emt 0:00:06]} Ne4+ {[%emt 0:00:44]} 49. Kb3 {[%emt 0:00:26]} Nd2+ {[%emt 0:02:18]} 50. Kc3 {[%emt 0:01:01]} Ne4+ {[%emt 0:00:41]} 51. Kb2 {[%emt 0:01:08]} Nd6 {[%emt 0:00:21]} 52. Bd7 {[%emt 0:00:18]} Rd8 {[%emt 0:01:11]} 53. Ra7 {[%emt 0:00:13]} Nc4+ {[%emt 0:00:21]} 54. Kc1 {[%emt 0:00:57]} Nxa5 {[%emt 0:00:36]} 55. Bxf5 {[%emt 0:00:10]} Nb3+ {[%emt 0:00:28]} 56. Kb2 {[%emt 0:00:50]} Nd2 {[%emt 0:00:30]} 57. Rc7+ {[%emt 0:02:21]} Kb4 {[%emt 0:00:14]} 58. Bd7 {[%emt 0:00:56]} Ne4 {[%emt 0:00:40]} 59. Kc2 {[%emt 0:00:17]} Nc5 {[%emt 0:00:37]} 60. Bxb5 {[%emt 0:01:12]} Kxb5 {[%emt 0:00:07]} 61. Rh7 {[%emt 0:00:03]} Rd5 {[%emt 0:00:31]} 62. Re7 {[%emt 0:00:31]} Kc4 {[%emt 0:00:08]} 63. Re1 {[%emt 0:00:35]} Nb3 {[%emt 0:00:37]} 64. Re4+ {[%emt 0:00:22]} Nd4+ {[%emt 0:00:45]} 65. Kd2 {[%emt 0:00:02]} Ra5 {[%emt 0:00:08]} 66. f5 {[%emt 0:01:27]} Rxf5 {[%emt 0:00:13]} 67. Re8 {[%emt 0:00:26]} Rf2+ {[%emt 0:00:10]} 68. Ke1 {[%emt 0:00:32]} Rxh2 {[%emt 0:00:11]} 69. Kf1 {[%emt 0:00:00]} Kd3 {[%emt 0:00:10]} 70. Re5 {[%emt 0:00:00]} Nf3 {[%emt 0:01:29]} 71. Re3+ {[%emt 0:00:00]} Kd4 {[%emt 0:00:02]} 72. Re4+ {[%emt 0:00:15]} Kd5 {[%emt 0:00:05]} 73. Rf4 {[%emt 0:00:26]} Nd4 {[%emt 0:00:50]} 74. Rf8 {[%emt 0:00:18]} Ra2 {[%emt 0:00:41]} 75. Rh8 {[%emt 0:00:47]} Ke4 {[%emt 0:00:10]} 76. Rf8 {[%emt 0:00:12]} Nf5 {[%emt 0:00:37]} 77. Kg1 {[%emt 0:00:03]} Ra3 {[%emt 0:00:05]} 78. Re8+ {[%emt 0:00:58]} Kf3 {[%emt 0:00:08]} 79. Re5 {[%emt 0:00:16]} Kxg3 {[%emt 0:00:11]} 0-1

[Event "55th Biel Festival MTO 2022"]
[Site "Biel"]
[Date "2022.07.21"]
[Round "8.14"]
[White "Karthik Rajaa"]
[Black "Raja Harshit"]
[Result "0-1"]
[ECO "A37"]
[WhiteElo "2331"]
[BlackElo "2477"]
[Annotator "RC"]
[PlyCount "60"]
[EventDate "2022.07.13"]
[EventType "swiss"]
[EventCountry "SUI"]
[SourceTitle "playchess.com"]
[Source "ChessBase"]
[SourceQuality "1"]
[TimeControl "40/5400+30:1800+30"]

1. Nf3 {[%emt 0:01:08]} c5 {[%emt 0:01:11]} 2. g3 {[%emt 0:00:50]} g6 {[%emt 0:01:47]} 3. c4 {[%emt 0:06:47]} Nc6 {[%emt 0:00:14]} 4. Nc3 {[%emt 0:00:09]} Bg7 {[%emt 0:00:15]} 5. Bg2 {[%emt 0:00:06]} d6 {[%emt 0:00:19]} 6. d3 {[%emt 0:02:32]} Bd7 {[%emt 0:00:49]} 7. O-O {[%emt 0:05:10]} Qc8 {[%emt 0:00:29]} 8. e3 {[%emt 0:07:13]} h5 {[%emt 0:03:48]} 9. h4 {[%emt 0:05:52]} Nh6 {[%emt 0:00:53]} 10. Qd2 {[%emt 0:01:10]} Bh3 {[%emt 0:02:52]} 11. Nd5 {[%emt 0:14:38]} O-O {[%emt 0:03:16]} 12. Rb1 {[%emt 0:02:27]} Bxg2 {[%emt 0:05:58]} 13. Kxg2 {[%emt 0:00:02]} e6 {[%emt 0:00:27]} 14. Nf4 {[%emt 0:04:22]} Ne5 {[%emt 0:01:09]} 15. Qe2 {[%emt 0:01:49]} Qc6 {[%emt 0:01:48]} 16. e4 {[%emt 0:02:42]} b5 {[%emt 0:03:46]} 17. b3 {[%emt 0:09:31]} Nhg4 {[%emt 0:02:25]} 18. Ng5 {[%emt 0:04:11]} a5 {[%emt 0:03:43]} 19. f3 {[%emt 0:00:48]} Nf6 {[%emt 0:01:16]} 20. Be3 {[%emt 0:06:44]} Rfb8 {[%emt 0:05:39]} 21. Qc2 {[%emt 0:03:29]} a4 {[%emt 0:02:38]} 22. cxb5 {[%emt 0:01:20]} Rxb5 {[%emt 0:00:23]} 23. bxa4 {[%emt 0:02:33]} Rba5 {[%emt 0:00:14]} 24. Rf2 {[%emt 0:06:06]} Rxa4 {[%emt 0:01:08]} 25. Rd2 {[%emt 0:01:14]} Nfd7 {[%emt 0:01:12]} 26. Qb3 {[%emt 0:05:19]} c4 {[%emt 0:01:33]} 27. Qc2 {[%emt 0:00:31]} Qa6 {[%emt 0:07:23]} 28. d4 {[%emt 0:00:30]} c3 {[%emt 0:06:30]} 29. Qxc3 {[%emt 0:03:20]} Rc8 {[%emt 0:00:22]} 30. Qb3 {[%emt 0:01:09]} Nc4 {[%emt 0:00:15]} 0-1

[Event "55th Biel Festival MTO 2022"]
[Site "Biel"]
[Date "2022.07.21"]
[Round "8.15"]
[White "Azarov, Sergei"]
[Black "Krishna C R G"]
[Result "1/2-1/2"]
[ECO "C07"]
[WhiteElo "2566"]
[BlackElo "2430"]
[Annotator "RC"]
[PlyCount "75"]
[EventDate "2022.07.13"]
[EventType "swiss"]
[EventCountry "SUI"]
[SourceTitle "playchess.com"]
[Source "ChessBase"]
[SourceQuality "1"]
[TimeControl "40/5400+30:1800+30"]

1. e4 {[%emt 0:00:04]} e6 {[%emt 0:00:07]} 2. d4 {[%emt 0:00:15]} d5 {[%emt 0:00:03]} 3. Nd2 {[%emt 0:00:17]} c5 {[%emt 0:00:06]} 4. exd5 {[%emt 0:00:38]} Qxd5 {[%emt 0:00:05]} 5. dxc5 {[%emt 0:00:32]} Nf6 {[%emt 0:00:35]} 6. Ngf3 {[%emt 0:01:04]} Qxc5 {[%emt 0:00:10]} 7. Bd3 {[%emt 0:01:52]} Nbd7 {[%emt 0:01:48]} 8. O-O {[%emt 0:06:31]} Be7 {[%emt 0:00:09]} 9. a4 {[%emt 0:03:30]} Qc7 {[%emt 0:03:36]} 10. a5 {[%emt 0:05:10]} O-O {[%emt 0:08:58]} 11. Nb3 {[%emt 0:02:22]} Nd5 {[%emt 0:14:32]} 12. c3 {[%emt 0:08:29]} N7f6 {[%emt 0:02:07]} 13. Re1 {[%emt 0:01:51]} Rd8 {[%emt 0:07:36]} 14. Nbd4 {[%emt 0:03:08]} Bd7 {[%emt 0:01:48]} 15. a6 {[%emt 0:02:22]} Be8 {[%emt 0:05:19]} 16. Qe2 {[%emt 0:09:13]} Bc5 {[%emt 0:05:43]} 17. g3 {[%emt 0:09:23]} Rab8 {[%emt 0:12:22]} 18. Bc4 {[%emt 0:08:27]} bxa6 {[%emt 0:04:58]} 19. Rxa6 {[%emt 0:01:24]} Rdc8 {[%emt 0:00:35]} 20. Bd3 {[%emt 0:03:01]} Rb6 {[%emt 0:00:32]} 21. Ra2 {[%emt 0:02:47]} a5 {[%emt 0:02:20]} 22. Rxa5 {[%emt 0:05:24]} Rxb2 {[%emt 0:11:44]} 23. Bxb2 {[%emt 0:00:23]} Qxa5 {[%emt 0:00:03]} 24. Nb3 {[%emt 0:02:53]} Qb6 {[%emt 0:01:14]} 25. Nxc5 {[%emt 0:00:18]} Qxc5 {[%emt 0:00:02]} 26. Rc1 {[%emt 0:04:03]} Nb6 {[%emt 0:00:53]} 27. c4 {[%emt 0:00:46]} Bc6 {[%emt 0:00:11]} 28. Bxf6 {[%emt 0:07:28]} gxf6 {[%emt 0:00:31]} 29. Be4 {[%emt 0:00:11]} Qa3 {[%emt 0:07:46]} 30. Rd1 {[%emt 0:06:44]} Bxe4 {[%emt 0:04:16]} 31. Qxe4 {[%emt 0:00:04]} Nxc4 {[%emt 0:00:39]} 32. Kg2 {[%emt 0:02:19]} Qa4 {[%emt 0:03:21]} 33. Rd4 {[%emt 0:02:01]} Qc6 {[%emt 0:01:28]} 34. Rd8+ {[%emt 0:01:21]} Kg7 {[%emt 0:00:02]} 35. Qg4+ {[%emt 0:00:43]} Kh6 {[%emt 0:00:01]} 36. Qf4+ {[%emt 0:00:55]} Kg7 {[%emt 0:00:04]} 37. Qg4+ {[%emt 0:00:16]} Kh6 {[%emt 0:00:02]} 38. Qh4+ {[%emt 0:00:44]} 1/2-1/2

[Event "55th Biel Festival MTO 2022"]
[Site "Biel"]
[Date "2022.07.21"]
[Round "8.16"]
[White "Seul, Georg"]
[Black "Shevchenko, Kirill"]
[Result "1/2-1/2"]
[ECO "B51"]
[WhiteElo "2367"]
[BlackElo "2654"]
[Annotator "RC"]
[PlyCount "94"]
[EventDate "2022.07.13"]
[EventType "swiss"]
[EventCountry "SUI"]
[SourceTitle "playchess.com"]
[Source "ChessBase"]
[SourceQuality "1"]
[TimeControl "40/5400+30:1800+30"]

1. e4 {[%emt 0:00:03]} c5 {[%emt 0:00:04]} 2. Nf3 {[%emt 0:00:06]} d6 {[%emt 0:00:05]} 3. Bb5+ {[%emt 0:00:13]} Nd7 {[%emt 0:00:24]} 4. d4 {[%emt 0:00:24]} cxd4 {[%emt 0:05:44]} 5. Qxd4 {[%emt 0:00:09]} a6 {[%emt 0:00:39]} 6. Bxd7+ {[%emt 0:00:12]} Qxd7 {[%emt 0:00:14]} 7. c4 {[%emt 0:05:13]} e5 {[%emt 0:05:13]} 8. Qd3 {[%emt 0:01:37]} f5 {[%emt 0:03:22]} 9. Nc3 {[%emt 0:01:14]} Nf6 {[%emt 0:01:40]} 10. exf5 {[%emt 0:17:19]} Qxf5 {[%emt 0:05:34]} 11. Qe2 {[%emt 0:01:46]} Be7 {[%emt 0:09:06]} 12. Bg5 {[%emt 0:28:11]} Be6 {[%emt 0:26:04]} 13. O-O {[%emt 0:22:50]} Rc8 {[%emt 0:10:44]} 14. b3 {[%emt 0:00:05]} O-O {[%emt 0:08:45]} 15. Rad1 {[%emt 0:04:27]} b5 {[%emt 0:08:50]} 16. Bxf6 {[%emt 0:00:18]} Rxf6 {[%emt 0:02:47]} 17. Nd5 {[%emt 0:01:12]} Bxd5 {[%emt 0:01:16]} 18. Rxd5 {[%emt 0:03:06]} Qg4 {[%emt 0:01:10]} 19. c5 {[%emt 0:00:40]} Rg6 {[%emt 0:05:30]} 20. g3 {[%emt 0:00:06]} e4 {[%emt 0:00:29]} 21. Nd4 {[%emt 0:02:50]} Qxe2 {[%emt 0:01:12]} 22. Nxe2 {[%emt 0:00:04]} dxc5 {[%emt 0:01:00]} 23. Re5 {[%emt 0:01:15]} Kf7 {[%emt 0:00:12]} 24. Rxe4 {[%emt 0:00:09]} Re6 {[%emt 0:00:50]} 25. Rf4+ {[%emt 0:00:16]} Bf6 {[%emt 0:00:22]} 26. Nc3 {[%emt 0:00:17]} g5 {[%emt 0:00:42]} 27. Rf3 {[%emt 0:00:27]} Kg6 {[%emt 0:01:12]} 28. Rc1 {[%emt 0:00:31]} Bd4 {[%emt 0:00:36]} 29. Rc2 {[%emt 0:00:25]} Rce8 {[%emt 0:00:42]} 30. h3 {[%emt 0:03:41]} h5 {[%emt 0:00:22]} 31. Kg2 {[%emt 0:00:48]} Re1 {[%emt 0:00:24]} 32. g4 {[%emt 0:01:21]} hxg4 {[%emt 0:00:21]} 33. hxg4 {[%emt 0:00:04]} R8e5 {[%emt 0:00:53]} 34. Rf8 {[%emt 0:00:43]} Kg7 {[%emt 0:00:26]} 35. Rf3 {[%emt 0:00:11]} Kg6 {[%emt 0:00:31]} 36. Rf8 {[%emt 0:00:04]} Re6 {[%emt 0:00:31]} 37. Rg8+ {[%emt 0:01:05]} Kh6 {[%emt 0:00:18]} 38. Rf8 {[%emt 0:00:17]} Kg7 {[%emt 0:00:22]} 39. Rf5 {[%emt 0:00:49]} Kg6 {[%emt 0:00:25]} 40. Kf3 {[%emt 0:00:00]} c4 {[%emt 0:00:00]} 41. Ne2 {[%emt 0:19:11]} Rd1 {[%emt 0:18:35]} 42. Nxd4 {[%emt 0:04:46]} Rd3+ {[%emt 0:00:49]} 43. Kg2 {[%emt 0:00:04]} Rxd4 {[%emt 0:00:04]} 44. Rc5 {[%emt 0:02:32]} Rxg4+ {[%emt 0:00:32]} 45. Kf1 {[%emt 0:00:04]} Ree4 {[%emt 0:00:51]} 46. Rc6+ {[%emt 0:00:11]} Kf5 {[%emt 0:00:29]} 47. Rxa6 {[%emt 0:00:42]} Re6 {[%emt 0:01:59]} 1/2-1/2

[Event "55th Biel Festival MTO 2022"]
[Site "Biel"]
[Date "2022.07.21"]
[Round "8.17"]
[White "Herrera Reyes, Jose Antonio"]
[Black "Huschenbeth, Niclas"]
[Result "0-1"]
[ECO "C44"]
[WhiteElo "2345"]
[BlackElo "2610"]
[Annotator "RC"]
[PlyCount "140"]
[EventDate "2022.07.13"]
[EventType "swiss"]
[EventCountry "SUI"]
[SourceTitle "playchess.com"]
[Source "ChessBase"]
[SourceQuality "1"]
[TimeControl "40/5400+30:1800+30"]

1. e4 {[%emt 0:00:16]} e5 {[%emt 0:00:07]} 2. Nf3 {[%emt 0:00:07]} Nc6 {[%emt 0:00:04]} 3. c4 {[%emt 0:00:05]} Bc5 {[%emt 0:00:10]} 4. a3 {[%emt 0:00:08]} a5 {[%emt 0:00:05]} 5. Nxe5 {[%emt 0:00:38]} Qh4 {[%emt 0:15:22]} 6. Nd3 {[%emt 0:00:07]} Qxe4+ {[%emt 0:00:05]} 7. Qe2 {[%emt 0:00:05]} Qxe2+ {[%emt 0:00:10]} 8. Bxe2 {[%emt 0:00:05]} Ba7 {[%emt 0:05:23]} 9. Nc3 {[%emt 0:18:37]} Nd4 {[%emt 0:01:25]} 10. Bd1 {[%emt 0:00:03]} Nf6 {[%emt 0:02:26]} 11. O-O {[%emt 0:04:16]} O-O {[%emt 0:00:45]} 12. b4 {[%emt 0:12:39]} axb4 {[%emt 0:15:33]} 13. axb4 {[%emt 0:02:27]} d6 {[%emt 0:00:05]} 14. Nf4 {[%emt 0:17:43]} Ne6 {[%emt 0:07:01]} 15. d4 {[%emt 0:00:08]} Bd7 {[%emt 0:11:33]} 16. Nxe6 {[%emt 0:02:58]} Bxe6 {[%emt 0:03:25]} 17. c5 {[%emt 0:00:05]} Bc4 {[%emt 0:06:42]} 18. Re1 {[%emt 0:00:39]} Rae8 {[%emt 0:02:37]} 19. Be3 {[%emt 0:13:27]} Bb8 {[%emt 0:00:06]} 20. c6 {[%emt 0:00:32]} bxc6 {[%emt 0:07:16]} 21. Ba4 {[%emt 0:00:05]} Nd5 {[%emt 0:01:32]} 22. Nxd5 {[%emt 0:00:17]} Bxd5 {[%emt 0:00:10]} 23. Rec1 {[%emt 0:00:08]} f5 {[%emt 0:01:36]} 24. g3 {[%emt 0:00:47]} Kf7 {[%emt 0:05:39]} 25. Rxc6 {[%emt 0:05:05]} Re7 {[%emt 0:01:04]} 26. Bb5 {[%emt 0:04:22]} h6 {[%emt 0:00:27]} 27. h4 {[%emt 0:02:04]} Kf6 {[%emt 0:00:39]} 28. Rc3 {[%emt 0:04:59]} g5 {[%emt 0:00:37]} 29. hxg5+ {[%emt 0:01:29]} hxg5 {[%emt 0:00:05]} 30. Bc6 {[%emt 0:00:05]} Bxc6 {[%emt 0:01:20]} 31. Rxc6 {[%emt 0:00:03]} Re4 {[%emt 0:05:12]} 32. Kg2 {[%emt 0:04:51]} Ke6 {[%emt 0:01:34]} 33. b5 {[%emt 0:04:54]} f4 {[%emt 0:01:33]} 34. gxf4 {[%emt 0:02:09]} gxf4 {[%emt 0:00:04]} 35. Kf3 {[%emt 0:00:37]} Kd5 {[%emt 0:00:13]} 36. Bd2 {[%emt 0:00:10]} Rxd4 {[%emt 0:00:34]} 37. Bc3 {[%emt 0:00:30]} Rd3+ {[%emt 0:01:02]} 38. Ke2 {[%emt 0:00:01]} Rh3 {[%emt 0:00:09]} 39. Rd1+ {[%emt 0:01:20]} Ke6 {[%emt 0:00:10]} 40. Rg1 {[%emt 0:00:41]} Rh5 {[%emt 0:04:09]} 41. Rg6+ {[%emt 0:05:21]} Kd5 {[%emt 0:06:28]} 42. Kf3 {[%emt 0:03:30]} Rf7 {[%emt 0:13:06]} 43. Ba5 {[%emt 0:10:33]} Rh3+ {[%emt 0:06:56]} 44. Kg4 {[%emt 0:02:48]} Ra3 {[%emt 0:00:23]} 45. Rg5+ {[%emt 0:01:39]} Ke6 {[%emt 0:00:46]} 46. Ra6 {[%emt 0:01:15]} f3 {[%emt 0:03:35]} 47. Rg8 {[%emt 0:00:45]} Ra1 {[%emt 0:00:53]} 48. Be1 {[%emt 0:07:00]} Rxa6 {[%emt 0:00:55]} 49. bxa6 {[%emt 0:00:31]} Ba7 {[%emt 0:00:05]} 50. Ra8 {[%emt 0:00:00]} Bb6 {[%emt 0:01:58]} 51. Kg3 {[%emt 0:02:05]} Kd5 {[%emt 0:00:34]} 52. Bd2 {[%emt 0:00:45]} Kc6 {[%emt 0:00:35]} 53. Rb8 {[%emt 0:00:19]} d5 {[%emt 0:00:22]} 54. Ba5 {[%emt 0:00:43]} Rg7+ {[%emt 0:01:19]} 55. Kxf3 {[%emt 0:00:13]} Rf7+ {[%emt 0:00:02]} 56. Ke2 {[%emt 0:00:04]} Bxf2 {[%emt 0:01:44]} 57. Bxc7 {[%emt 0:00:05]} Ba7 {[%emt 0:00:17]} 58. Bg3 {[%emt 0:01:06]} Re7+ {[%emt 0:00:32]} 59. Kd2 {[%emt 0:00:12]} Bxb8 {[%emt 0:00:14]} 60. Bxb8 {[%emt 0:00:01]} Re4 {[%emt 0:00:20]} 61. a7 {[%emt 0:01:07]} Ra4 {[%emt 0:00:12]} 62. Kc3 {[%emt 0:00:16]} Kc5 {[%emt 0:01:03]} 63. Kb3 {[%emt 0:01:20]} Ra6 {[%emt 0:00:06]} 64. Kc3 {[%emt 0:00:22]} d4+ {[%emt 0:00:42]} 65. Kb3 {[%emt 0:00:01]} Kd5 {[%emt 0:00:39]} 66. Kb4 {[%emt 0:00:52]} Ra1 {[%emt 0:00:23]} 67. Kb3 {[%emt 0:00:48]} Ke4 {[%emt 0:00:39]} 68. Kc2 {[%emt 0:00:19]} d3+ {[%emt 0:00:33]} 69. Kd2 {[%emt 0:00:41]} Ra2+ {[%emt 0:00:08]} 70. Kc3 {[%emt 0:00:01]} d2 {[%emt 0:00:48]} 0-1